[Event "Early-Titled-Tuesday-Blitz-September-05-2023"]
[Site "Chess.com"]
[Date "2023.09.05"]
[Round "1"]
[White "dropstoneDP"]
[Black "jup1978"]
[Result "1-0"]
[WhiteElo "3003"]
[BlackElo "2523"]
[TimeControl "180+1"]
[EndTime "8:05:01 PDT"]
[Termination "dropstoneDP won by resignation"]

1. e4 {[%clk 0:02:54.3]} 1... c5 {[%clk 0:02:57.7]} 2. Nf3 {[%clk 0:02:45.9]}
2... d6 {[%clk 0:02:57.8]} 3. d4 {[%clk 0:02:46.3]} 3... cxd4 {[%clk 0:02:58.7]}
4. Nxd4 {[%clk 0:02:47.2]} 4... Nf6 {[%clk 0:02:59.1]} 5. Nc3 {[%clk 0:02:47.8]}
5... Nc6 {[%clk 0:02:59.6]} 6. Bg5 {[%clk 0:02:48.1]} 6... g6 {[%clk 0:02:59]}
7. Bxf6 {[%clk 0:02:47.3]} 7... exf6 {[%clk 0:02:59.9]} 8. Bb5 {[%clk
0:02:47.6]} 8... Bd7 {[%clk 0:02:55.3]} 9. Qd2 {[%clk 0:02:48]} 9... Bg7 {[%clk
0:02:51.8]} 10. O-O-O {[%clk 0:02:48.1]} 10... O-O {[%clk 0:02:50.6]} 11. Nxc6
{[%clk 0:02:48.6]} 11... bxc6 {[%clk 0:02:50.3]} 12. Qxd6 {[%clk 0:02:47.9]}
12... cxb5 {[%clk 0:02:47.9]} 13. Qxd7 {[%clk 0:02:48.2]} 13... Qb6 {[%clk
0:02:48]} 14. Qd4 {[%clk 0:02:48]} 14... Qa5 {[%clk 0:02:39.1]} 15. Kb1 {[%clk
0:02:39.1]} 15... Rac8 {[%clk 0:02:33.5]} 16. Nd5 {[%clk 0:02:38.3]} 16... Kh8
{[%clk 0:02:23.4]} 17. c3 {[%clk 0:02:29.9]} 17... f5 {[%clk 0:02:20.6]} 18. Qd3
{[%clk 0:02:10.6]} 18... fxe4 {[%clk 0:02:08.8]} 19. Qxe4 {[%clk 0:02:11.5]}
19... Rfe8 {[%clk 0:02:07.8]} 20. Qf3 {[%clk 0:02:08.1]} 20... f5 {[%clk
0:01:49.5]} 21. Rhe1 {[%clk 0:02:05.7]} 21... Red8 {[%clk 0:01:49.2]} 22. h4
{[%clk 0:01:58.1]} 22... Qa4 {[%clk 0:01:48.7]} 23. h5 {[%clk 0:01:54.8]} 23...
a5 {[%clk 0:01:30.5]} 24. hxg6 {[%clk 0:01:53.7]} 24... h6 {[%clk 0:01:31]} 25.
Nb6 {[%clk 0:01:45.7]} 25... Qh4 {[%clk 0:01:15.1]} 26. Nxc8 {[%clk 0:01:44.5]}
26... Rxc8 {[%clk 0:01:16]} 27. Qxf5 {[%clk 0:01:43.7]} 27... Rb8 {[%clk
0:01:16.4]} 28. Re4 {[%clk 0:01:35.3]} 28... Qh2 {[%clk 0:01:09.6]} 29. Qf4
{[%clk 0:01:34.7]} 29... Qxf4 {[%clk 0:01:03.8]} 30. Rxf4 {[%clk 0:01:35.6]}
30... b4 {[%clk 0:01:04.4]} 31. cxb4 {[%clk 0:01:35.5]} 31... axb4 {[%clk
0:01:04.7]} 32. Rxb4 {[%clk 0:01:33.5]} 32... Rxb4 {[%clk 0:01:00.7]} 33. Rd8+
{[%clk 0:01:34.1]} 33... Bf8 {[%clk 0:01:01.2]} 34. Rxf8+ {[%clk 0:01:34.7]}
34... Kg7 {[%clk 0:01:01.8]} 35. Rf3 {[%clk 0:01:34.8]} 35... Kxg6 {[%clk
0:01:01.6]} 36. a3 {[%clk 0:01:35.3]} 36... Rb7 {[%clk 0:00:59.5]} 37. Ka2
{[%clk 0:01:35.4]} 1-0

[Event "Early-Titled-Tuesday-Blitz-September-05-2023"]
[Site "Chess.com"]
[Date "2023.09.05"]
[Round "1"]
[White "DrCeltic"]
[Black "PattyCastillo"]
[Result "1-0"]
[WhiteElo "2556"]
[BlackElo "1999"]
[TimeControl "180+1"]
[EndTime "8:05:06 PDT"]
[Termination "DrCeltic won by checkmate"]

1. e4 {[%clk 0:02:59.2]} 1... c5 {[%clk 0:02:58]} 2. Nf3 {[%clk 0:02:58.7]} 2...
d6 {[%clk 0:02:56.8]} 3. d4 {[%clk 0:02:57.2]} 3... cxd4 {[%clk 0:02:57.3]} 4.
Nxd4 {[%clk 0:02:58.1]} 4... Nf6 {[%clk 0:02:57.2]} 5. Nc3 {[%clk 0:02:58.6]}
5... a6 {[%clk 0:02:58]} 6. Be3 {[%clk 0:02:58.5]} 6... e5 {[%clk 0:02:58]} 7.
Nf3 {[%clk 0:02:59.1]} 7... Be7 {[%clk 0:02:57.1]} 8. Bc4 {[%clk 0:02:58.8]}
8... Be6 {[%clk 0:02:56.6]} 9. Bxe6 {[%clk 0:02:58.3]} 9... fxe6 {[%clk
0:02:57.5]} 10. O-O {[%clk 0:02:58.8]} 10... O-O {[%clk 0:02:48.1]} 11. Na4
{[%clk 0:02:58.2]} 11... Nc6 {[%clk 0:02:06.1]} 12. Ng5 {[%clk 0:02:49.4]} 12...
b5 {[%clk 0:01:38.4]} 13. Nb6 {[%clk 0:02:36.2]} 13... Rb8 {[%clk 0:01:28.1]}
14. Nxe6 {[%clk 0:02:35.2]} 14... Qe8 {[%clk 0:01:26.9]} 15. Nxf8 {[%clk
0:02:31.1]} 15... Bxf8 {[%clk 0:01:25.9]} 16. Nd5 {[%clk 0:02:29.9]} 16... Nxe4
{[%clk 0:01:20.2]} 17. Nc7 {[%clk 0:02:29.5]} 17... Qf7 {[%clk 0:01:16]} 18. Qd5
{[%clk 0:02:25.7]} 18... Qxd5 {[%clk 0:01:13.7]} 19. Nxd5 {[%clk 0:02:26.6]}
19... Nd4 {[%clk 0:01:10.1]} 20. Bxd4 {[%clk 0:02:23.8]} 20... exd4 {[%clk
0:01:10.6]} 21. Rfd1 {[%clk 0:02:22.4]} 21... Rc8 {[%clk 0:01:06.1]} 22. Rxd4
{[%clk 0:02:21.6]} 22... Ng5 {[%clk 0:00:58.5]} 23. c3 {[%clk 0:02:16.3]} 23...
Ne6 {[%clk 0:00:56.6]} 24. Re4 {[%clk 0:02:14.6]} 24... Nc5 {[%clk 0:00:53.8]}
25. Ne7+ {[%clk 0:02:10.6]} 25... Bxe7 {[%clk 0:00:52.4]} 26. Rxe7 {[%clk
0:02:11.5]} 26... Nd3 {[%clk 0:00:52]} 27. Rb1 {[%clk 0:02:05.5]} 27... b4
{[%clk 0:00:51.3]} 28. cxb4 {[%clk 0:02:02.6]} 28... Rc2 {[%clk 0:00:47]} 29.
Rd7 {[%clk 0:01:57.4]} 29... Nxf2 {[%clk 0:00:37.7]} 30. Rf1 {[%clk 0:01:54.5]}
30... Ng4 {[%clk 0:00:28]} 31. Rd8# {[%clk 0:01:54.1]} 1-0

[Event "Early-Titled-Tuesday-Blitz-September-05-2023"]
[Site "Chess.com"]
[Date "2023.09.05"]
[Round "1"]
[White "OriTaichman"]
[Black "venturov"]
[Result "0-1"]
[WhiteElo "2641"]
[BlackElo "2383"]
[TimeControl "180+1"]
[EndTime "8:05:07 PDT"]
[Termination "venturov won by resignation"]

1. e4 {[%clk 0:03:00.9]} 1... Nf6 {[%clk 0:02:58.8]} 2. e5 {[%clk 0:02:59.9]}
2... Nd5 {[%clk 0:02:58.9]} 3. d4 {[%clk 0:03:00.2]} 3... d6 {[%clk 0:02:59]} 4.
c4 {[%clk 0:03:00]} 4... Nb6 {[%clk 0:02:58.4]} 5. exd6 {[%clk 0:03:00.5]} 5...
cxd6 {[%clk 0:02:58.6]} 6. Nc3 {[%clk 0:03:00.1]} 6... g6 {[%clk 0:02:58.8]} 7.
Be3 {[%clk 0:03:00.7]} 7... Bg7 {[%clk 0:02:59.1]} 8. Rc1 {[%clk 0:03:01.3]}
8... O-O {[%clk 0:02:59.6]} 9. b3 {[%clk 0:03:01.9]} 9... Bf5 {[%clk 0:03:00]}
10. Bd3 {[%clk 0:02:57.4]} 10... Bxd3 {[%clk 0:02:59.3]} 11. Qxd3 {[%clk
0:02:58.3]} 11... d5 {[%clk 0:02:58.4]} 12. c5 {[%clk 0:02:56.8]} 12... Nc8
{[%clk 0:02:58.2]} 13. f4 {[%clk 0:02:47.6]} 13... Nc6 {[%clk 0:02:53.8]} 14.
Nf3 {[%clk 0:02:47.5]} 14... e6 {[%clk 0:02:54.3]} 15. O-O {[%clk 0:02:47.1]}
15... N8e7 {[%clk 0:02:54.9]} 16. g4 {[%clk 0:02:46.2]} 16... f5 {[%clk
0:02:38.6]} 17. g5 {[%clk 0:02:45.4]} 17... b6 {[%clk 0:02:21]} 18. Na4 {[%clk
0:02:37.6]} 18... Rb8 {[%clk 0:02:03.3]} 19. Qa6 {[%clk 0:02:09.8]} 19... b5
{[%clk 0:01:45.6]} 20. Nb2 {[%clk 0:02:08.6]} 20... Nb4 {[%clk 0:01:38.5]} 21.
Qxa7 {[%clk 0:02:04.8]} 21... Nec6 {[%clk 0:01:27.1]} 22. Qa3 {[%clk 0:01:57.7]}
22... Ra8 {[%clk 0:01:27.1]} 23. Na4 {[%clk 0:01:57.5]} 23... bxa4 {[%clk
0:01:24.5]} 24. bxa4 {[%clk 0:01:58]} 24... Qa5 {[%clk 0:01:24.3]} 25. Ne5
{[%clk 0:01:49.7]} 25... Bxe5 {[%clk 0:01:17.2]} 26. dxe5 {[%clk 0:01:49.5]}
26... Qxa4 {[%clk 0:01:17.2]} 27. Qxa4 {[%clk 0:01:42.6]} 27... Rxa4 {[%clk
0:01:18.1]} 28. Rf2 {[%clk 0:01:43]} 28... Rfa8 {[%clk 0:01:15.3]} 29. Rb1
{[%clk 0:01:41.9]} 29... Rxa2 {[%clk 0:01:14]} 30. Bd2 {[%clk 0:01:41.9]} 30...
Ra1 {[%clk 0:01:05.3]} 31. Rxa1 {[%clk 0:01:40.3]} 31... Rxa1+ {[%clk
0:01:06.2]} 32. Kg2 {[%clk 0:01:41.1]} 32... Ra2 {[%clk 0:01:02.2]} 33. h4
{[%clk 0:01:38.4]} 33... Nd3 {[%clk 0:00:58.4]} 34. Re2 {[%clk 0:01:36.2]} 34...
Nxc5 {[%clk 0:00:58.5]} 35. h5 {[%clk 0:01:34.6]} 35... Ne4 {[%clk 0:00:57.7]}
36. hxg6 {[%clk 0:01:35.1]} 36... Rxd2 {[%clk 0:00:55.2]} 37. gxh7+ {[%clk
0:01:32.4]} 37... Kxh7 {[%clk 0:00:54.7]} 0-1

[Event "Early-Titled-Tuesday-Blitz-September-05-2023"]
[Site "Chess.com"]
[Date "2023.09.05"]
[Round "1"]
[White "ExchangeAB"]
[Black "mitrabhaa"]
[Result "0-1"]
[WhiteElo "2452"]
[BlackElo "2819"]
[TimeControl "180+1"]
[EndTime "8:05:11 PDT"]
[Termination "mitrabhaa won by resignation"]

1. d4 {[%clk 0:03:00.9]} 1... c5 {[%clk 0:03:00]} 2. e3 {[%clk 0:03:00.3]} 2...
Nf6 {[%clk 0:03:00.4]} 3. Nf3 {[%clk 0:03:00.2]} 3... g6 {[%clk 0:02:59.2]} 4.
c3 {[%clk 0:03:00.5]} 4... Bg7 {[%clk 0:02:59.3]} 5. Nbd2 {[%clk 0:02:58.7]}
5... O-O {[%clk 0:02:59.7]} 6. dxc5 {[%clk 0:02:58.4]} 6... Qc7 {[%clk
0:02:56.2]} 7. Nb3 {[%clk 0:02:45]} 7... a5 {[%clk 0:02:50.2]} 8. a4 {[%clk
0:02:42.8]} 8... Na6 {[%clk 0:02:50.4]} 9. Bxa6 {[%clk 0:02:42.5]} 9... bxa6
{[%clk 0:02:43.3]} 10. O-O {[%clk 0:02:42.3]} 10... Ne4 {[%clk 0:02:42.5]} 11.
Nfd4 {[%clk 0:02:28.5]} 11... Bb7 {[%clk 0:02:39.7]} 12. f3 {[%clk 0:02:24.5]}
12... Nxc5 {[%clk 0:02:33.6]} 13. Nxc5 {[%clk 0:02:23.8]} 13... Qxc5 {[%clk
0:02:31.7]} 14. Qe2 {[%clk 0:02:17.8]} 14... d6 {[%clk 0:02:30.8]} 15. Kh1
{[%clk 0:02:16.9]} 15... Bd5 {[%clk 0:02:29.2]} 16. Re1 {[%clk 0:02:03.7]} 16...
Bc4 {[%clk 0:02:28.7]} 17. Qc2 {[%clk 0:02:02.6]} 17... e5 {[%clk 0:02:28.1]}
18. Ne2 {[%clk 0:01:57.2]} 18... Rab8 {[%clk 0:02:27.1]} 19. Ng3 {[%clk
0:01:54.1]} 19... f5 {[%clk 0:02:26.6]} 20. e4 {[%clk 0:01:51.8]} 20... f4
{[%clk 0:02:25.9]} 21. Nf1 {[%clk 0:01:50.9]} 21... g5 {[%clk 0:02:24.8]} 22. h3
{[%clk 0:01:42.2]} 22... h5 {[%clk 0:02:24.4]} 23. Nh2 {[%clk 0:01:41.2]} 23...
Bf6 {[%clk 0:02:23.4]} 24. b4 {[%clk 0:01:28.6]} 24... axb4 {[%clk 0:02:21.7]}
25. cxb4 {[%clk 0:01:29.5]} 25... Qxb4 {[%clk 0:02:21.5]} 26. Ba3 {[%clk
0:01:29.5]} 26... Qb3 {[%clk 0:02:19.1]} 27. Qxb3 {[%clk 0:01:27.3]} 27... Rxb3
{[%clk 0:02:20]} 28. Bxd6 {[%clk 0:01:27.3]} 28... Rd8 {[%clk 0:02:20.6]} 29.
Bc7 {[%clk 0:01:23.3]} 29... Rd7 {[%clk 0:02:20.3]} 30. Ba5 {[%clk 0:01:22.6]}
30... Kf7 {[%clk 0:02:20.2]} 31. Rab1 {[%clk 0:01:19.9]} 31... Be7 {[%clk
0:02:16.2]} 32. Nf1 {[%clk 0:01:16.7]} 32... Ra3 {[%clk 0:02:11.3]} 33. Nd2
{[%clk 0:01:08.5]} 33... Be6 {[%clk 0:02:07.5]} 34. Ra1 {[%clk 0:01:04.2]} 34...
Rad3 {[%clk 0:02:00.2]} 35. Nb1 {[%clk 0:00:55.9]} 35... g4 {[%clk 0:02:00]} 36.
hxg4 {[%clk 0:00:55.3]} 36... hxg4 {[%clk 0:02:00.9]} 37. Rf1 {[%clk 0:00:51.2]}
37... g3 {[%clk 0:02:00]} 38. Bb6 {[%clk 0:00:48.9]} 38... Kg6 {[%clk 0:01:58]}
39. Kg1 {[%clk 0:00:49]} 39... Bb4 {[%clk 0:01:57.4]} 40. a5 {[%clk 0:00:46.3]}
40... R3d6 {[%clk 0:01:57.7]} 41. Rc1 {[%clk 0:00:44.9]} 41... Rd1+ {[%clk
0:01:57.2]} 0-1

[Event "Early-Titled-Tuesday-Blitz-September-05-2023"]
[Site "Chess.com"]
[Date "2023.09.05"]
[Round "1"]
[White "Kapibara_Warri0r"]
[Black "Druid24"]
[Result "1-0"]
[WhiteElo "2434"]
[BlackElo "2656"]
[TimeControl "180+1"]
[EndTime "8:05:12 PDT"]
[Termination "Kapibara_Warri0r won by checkmate"]

1. e4 {[%clk 0:02:58.1]} 1... c5 {[%clk 0:02:56]} 2. Nc3 {[%clk 0:02:57.3]} 2...
Nc6 {[%clk 0:02:55.5]} 3. Nge2 {[%clk 0:02:56.3]} 3... g6 {[%clk 0:02:55.3]} 4.
d3 {[%clk 0:02:54.7]} 4... Bg7 {[%clk 0:02:55.3]} 5. g3 {[%clk 0:02:54.8]} 5...
e6 {[%clk 0:02:55.6]} 6. Bg2 {[%clk 0:02:55.2]} 6... Nge7 {[%clk 0:02:55.8]} 7.
O-O {[%clk 0:02:55.5]} 7... O-O {[%clk 0:02:55.8]} 8. f4 {[%clk 0:02:55.9]} 8...
d5 {[%clk 0:02:55.5]} 9. e5 {[%clk 0:02:53.5]} 9... f6 {[%clk 0:02:54.1]} 10.
exf6 {[%clk 0:02:43.6]} 10... Bxf6 {[%clk 0:02:55]} 11. Kh1 {[%clk 0:02:29.4]}
11... Rb8 {[%clk 0:02:54.1]} 12. a4 {[%clk 0:02:27.4]} 12... b6 {[%clk
0:02:53.5]} 13. Bd2 {[%clk 0:02:17.3]} 13... Bb7 {[%clk 0:02:53.3]} 14. g4
{[%clk 0:02:14.8]} 14... Nb4 {[%clk 0:02:48.6]} 15. Ng3 {[%clk 0:02:09.8]} 15...
Bg7 {[%clk 0:02:46.5]} 16. Rc1 {[%clk 0:01:52.2]} 16... Qd7 {[%clk 0:02:46.1]}
17. Qe2 {[%clk 0:01:50.8]} 17... Rbe8 {[%clk 0:02:45.3]} 18. Rfe1 {[%clk
0:01:33.3]} 18... Nec6 {[%clk 0:02:44.9]} 19. Nb5 {[%clk 0:01:21.3]} 19... a6
{[%clk 0:02:44.8]} 20. c3 {[%clk 0:01:09.3]} 20... axb5 {[%clk 0:02:43]} 21.
axb5 {[%clk 0:01:05.4]} 21... Nd4 {[%clk 0:02:38.5]} 22. cxd4 {[%clk 0:01:04.4]}
22... Qxb5 {[%clk 0:02:38]} 23. dxc5 {[%clk 0:01:03]} 23... bxc5 {[%clk
0:02:38.9]} 24. d4 {[%clk 0:00:49.8]} 24... Qxe2 {[%clk 0:02:32]} 25. Rxe2
{[%clk 0:00:50.7]} 25... Nd3 {[%clk 0:02:32.5]} 26. Rc3 {[%clk 0:00:41.4]} 26...
cxd4 {[%clk 0:02:32.7]} 27. Rxd3 {[%clk 0:00:17]} 27... Ba6 {[%clk 0:02:32.2]}
28. Ra3 {[%clk 0:00:13.6]} 28... Bxe2 {[%clk 0:02:29.2]} 29. Nxe2 {[%clk
0:00:14.5]} 29... Rc8 {[%clk 0:02:28.8]} 30. Bf3 {[%clk 0:00:12.8]} 30... Rc2
{[%clk 0:02:28.5]} 31. Rd3 {[%clk 0:00:12.4]} 31... e5 {[%clk 0:02:14.5]} 32.
fxe5 {[%clk 0:00:12.2]} 32... Rxf3 {[%clk 0:02:14.1]} 33. Rxf3 {[%clk
0:00:10.5]} 33... Rxd2 {[%clk 0:02:14.8]} 34. Nf4 {[%clk 0:00:10.2]} 34... Bxe5
{[%clk 0:02:12.5]} 35. Ne6 {[%clk 0:00:10.5]} 35... Rxh2+ {[%clk 0:02:12.9]} 36.
Kg1 {[%clk 0:00:10.4]} 36... Rxb2 {[%clk 0:02:13.8]} 37. Rf8# {[%clk 0:00:09.2]}
1-0

[Event "Early-Titled-Tuesday-Blitz-September-05-2023"]
[Site "Chess.com"]
[Date "2023.09.05"]
[Round "1"]
[White "KorolDimitriy75"]
[Black "GoltsevDmitry2000"]
[Result "0-1"]
[WhiteElo "2333"]
[BlackElo "2640"]
[TimeControl "180+1"]
[EndTime "8:05:12 PDT"]
[Termination "GoltsevDmitry2000 won by resignation"]

1. d4 {[%clk 0:03:00.9]} 1... e6 {[%clk 0:02:59.6]} 2. c4 {[%clk 0:03:01.1]}
2... b6 {[%clk 0:02:57.6]} 3. Nc3 {[%clk 0:03:00.9]} 3... Bb7 {[%clk 0:02:56.8]}
4. Qc2 {[%clk 0:03:00.1]} 4... Nf6 {[%clk 0:02:56.9]} 5. e4 {[%clk 0:02:58.5]}
5... Bb4 {[%clk 0:02:56.4]} 6. e5 {[%clk 0:02:58.1]} 6... Ne4 {[%clk 0:02:56.5]}
7. Nf3 {[%clk 0:02:57.6]} 7... Nxc3 {[%clk 0:02:51.2]} 8. bxc3 {[%clk
0:02:58.5]} 8... Be7 {[%clk 0:02:52.1]} 9. Be2 {[%clk 0:02:58.4]} 9... d6 {[%clk
0:02:48.2]} 10. O-O {[%clk 0:02:56.3]} 10... Nd7 {[%clk 0:02:48.3]} 11. exd6
{[%clk 0:02:32.1]} 11... cxd6 {[%clk 0:02:46.5]} 12. a4 {[%clk 0:02:32.7]} 12...
O-O {[%clk 0:02:44.8]} 13. a5 {[%clk 0:02:17.9]} 13... bxa5 {[%clk 0:02:43]} 14.
Qa4 {[%clk 0:02:16.9]} 14... Qc7 {[%clk 0:02:28.1]} 15. Qxa5 {[%clk 0:02:06.8]}
15... Nb6 {[%clk 0:02:27.5]} 16. Be3 {[%clk 0:01:56.1]} 16... Rac8 {[%clk
0:02:22.8]} 17. Nd2 {[%clk 0:01:45.9]} 17... f5 {[%clk 0:02:13.6]} 18. f4 {[%clk
0:01:37.8]} 18... h6 {[%clk 0:01:55.8]} 19. h3 {[%clk 0:00:32.1]} 19... g5
{[%clk 0:01:54.1]} 20. Kh2 {[%clk 0:00:29]} 20... Kh7 {[%clk 0:01:52.9]} 21.
Rfb1 {[%clk 0:00:24.5]} 21... Rg8 {[%clk 0:01:47]} 22. Qxa7 {[%clk 0:00:16.9]}
22... gxf4 {[%clk 0:01:44.9]} 23. Bxf4 {[%clk 0:00:16.9]} 23... Rxg2+ {[%clk
0:01:43.6]} 0-1

[Event "Early-Titled-Tuesday-Blitz-September-05-2023"]
[Site "Chess.com"]
[Date "2023.09.05"]
[Round "1"]
[White "DrDreBeats"]
[Black "FairChess_on_YouTube"]
[Result "0-1"]
[WhiteElo "2533"]
[BlackElo "3055"]
[TimeControl "180+1"]
[EndTime "8:05:20 PDT"]
[Termination "FairChess_on_YouTube won by resignation"]

1. e4 {[%clk 0:02:59.4]} 1... c5 {[%clk 0:02:57.7]} 2. Nf3 {[%clk 0:02:59.3]}
2... e6 {[%clk 0:02:57.2]} 3. d4 {[%clk 0:02:59.4]} 3... cxd4 {[%clk 0:02:58.1]}
4. Bg5 {[%clk 0:02:58.5]} 4... Qc7 {[%clk 0:02:54.5]} 5. c3 {[%clk 0:02:56]}
5... dxc3 {[%clk 0:02:51.8]} 6. Nxc3 {[%clk 0:02:56.9]} 6... a6 {[%clk
0:02:51.1]} 7. Rc1 {[%clk 0:02:56.4]} 7... Nc6 {[%clk 0:02:51.1]} 8. Be2 {[%clk
0:02:55.8]} 8... Be7 {[%clk 0:02:44.8]} 9. O-O {[%clk 0:02:49.9]} 9... Bxg5
{[%clk 0:02:41.2]} 10. Nxg5 {[%clk 0:02:49.8]} 10... Nf6 {[%clk 0:02:41.3]} 11.
Nd5 {[%clk 0:02:46.4]} 11... exd5 {[%clk 0:02:37.9]} 12. exd5 {[%clk 0:02:46.5]}
12... O-O {[%clk 0:02:37.7]} 13. dxc6 {[%clk 0:02:46.5]} 13... dxc6 {[%clk
0:02:34.3]} 14. Bc4 {[%clk 0:02:45.9]} 14... h6 {[%clk 0:02:32.1]} 15. Nxf7
{[%clk 0:02:41.2]} 15... Rxf7 {[%clk 0:02:31.1]} 16. Qb3 {[%clk 0:02:41.6]}
16... Bf5 {[%clk 0:02:15.5]} 17. Rfe1 {[%clk 0:02:37.3]} 17... Rf8 {[%clk
0:02:14.4]} 18. Bxf7+ {[%clk 0:02:29.2]} 18... Qxf7 {[%clk 0:02:13.3]} 19. Qb6
{[%clk 0:02:25.2]} 19... Nd5 {[%clk 0:02:11]} 20. Qc5 {[%clk 0:02:24]} 20... Nf4
{[%clk 0:02:03.9]} 21. Re7 {[%clk 0:02:17.9]} 21... Qg6 {[%clk 0:02:03.7]} 22.
g3 {[%clk 0:02:12.1]} 22... Nh3+ {[%clk 0:01:58.8]} 23. Kg2 {[%clk 0:02:05.4]}
23... Ng5 {[%clk 0:01:58.2]} 24. Qc4+ {[%clk 0:01:50]} 24... Be6 {[%clk
0:01:55.8]} 25. Qc3 {[%clk 0:01:42.4]} 25... Bd5+ {[%clk 0:01:48.3]} 26. Kg1
{[%clk 0:01:39.4]} 26... Nf3+ {[%clk 0:01:35.6]} 27. Kg2 {[%clk 0:01:29.7]}
27... Ne5+ {[%clk 0:01:28]} 28. Kg1 {[%clk 0:01:28]} 28... Qe4 {[%clk
0:01:25.5]} 29. Kf1 {[%clk 0:00:55.9]} 29... Qg2+ {[%clk 0:01:23]} 30. Ke1
{[%clk 0:00:55.7]} 30... Qxf2+ {[%clk 0:01:23.3]} 31. Kd1 {[%clk 0:00:55.5]}
31... Bf3+ {[%clk 0:01:23.5]} 0-1

[Event "Early-Titled-Tuesday-Blitz-September-05-2023"]
[Site "Chess.com"]
[Date "2023.09.05"]
[Round "1"]
[White "marcodobrikov"]
[Black "Larina_Maria"]
[Result "1-0"]
[WhiteElo "2587"]
[BlackElo "2201"]
[TimeControl "180+1"]
[EndTime "8:05:30 PDT"]
[Termination "marcodobrikov won by resignation"]

1. c3 {[%clk 0:02:58.5]} 1... f5 {[%clk 0:02:56]} 2. h4 {[%clk 0:02:56.6]} 2...
Nf6 {[%clk 0:02:55.8]} 3. h5 {[%clk 0:02:56.8]} 3... e5 {[%clk 0:02:51.7]} 4. d4
{[%clk 0:02:56.8]} 4... e4 {[%clk 0:02:46.9]} 5. h6 {[%clk 0:02:51.7]} 5... g6
{[%clk 0:02:46.9]} 6. Bg5 {[%clk 0:02:51]} 6... Be7 {[%clk 0:02:45.5]} 7. e3
{[%clk 0:02:51]} 7... d5 {[%clk 0:02:45.2]} 8. c4 {[%clk 0:02:50.5]} 8... c6
{[%clk 0:02:45.4]} 9. Nc3 {[%clk 0:02:50.3]} 9... Be6 {[%clk 0:02:43.1]} 10. Nh3
{[%clk 0:02:44.1]} 10... Bf7 {[%clk 0:02:40.9]} 11. Nf4 {[%clk 0:02:43.5]} 11...
Nbd7 {[%clk 0:02:32.2]} 12. cxd5 {[%clk 0:02:41.6]} 12... cxd5 {[%clk
0:02:18.6]} 13. Bb5 {[%clk 0:02:38.5]} 13... O-O {[%clk 0:02:17]} 14. Qb3 {[%clk
0:02:36.7]} 14... Nb6 {[%clk 0:01:57.3]} 15. Be2 {[%clk 0:02:26.6]} 15... Rc8
{[%clk 0:01:32.7]} 16. Rc1 {[%clk 0:02:26.2]} 16... Nc4 {[%clk 0:01:11.6]} 17.
Bxc4 {[%clk 0:02:19.4]} 17... dxc4 {[%clk 0:01:10]} 18. Qxb7 {[%clk 0:02:17.6]}
18... Rb8 {[%clk 0:00:57.1]} 19. Qxa7 {[%clk 0:02:16.5]} 19... Rxb2 {[%clk
0:00:57.1]} 20. O-O {[%clk 0:02:14.8]} 20... Re8 {[%clk 0:00:41]} 21. a4 {[%clk
0:02:06.3]} 21... Ng4 {[%clk 0:00:26.2]} 22. Bxe7 {[%clk 0:02:01.8]} 22... Rxe7
{[%clk 0:00:25.3]} 23. Qc5 {[%clk 0:02:01]} 23... Qc7 {[%clk 0:00:21.4]} 24. a5
{[%clk 0:01:55.7]} 24... Nxh6 {[%clk 0:00:16.3]} 25. Rb1 {[%clk 0:01:47.3]}
25... Ra2 {[%clk 0:00:13.9]} 26. Ra1 {[%clk 0:01:44.5]} 26... Rxa1 {[%clk
0:00:13.8]} 27. Rxa1 {[%clk 0:01:44.2]} 27... Qa7 {[%clk 0:00:14.2]} 28. a6
{[%clk 0:01:41.2]} 28... Ng4 {[%clk 0:00:11.4]} 29. Qxa7 {[%clk 0:01:40.9]}
29... Rxa7 {[%clk 0:00:11.1]} 30. Nb5 {[%clk 0:01:41.4]} 30... Ra8 {[%clk
0:00:11.8]} 31. a7 {[%clk 0:01:42.1]} 31... Nf6 {[%clk 0:00:09.6]} 32. Nc7
{[%clk 0:01:42.3]} 1-0

[Event "Early-Titled-Tuesday-Blitz-September-05-2023"]
[Site "Chess.com"]
[Date "2023.09.05"]
[Round "1"]
[White "The_Machine04"]
[Black "KatakuriDono"]
[Result "0-1"]
[WhiteElo "2614"]
[BlackElo "2325"]
[TimeControl "180+1"]
[EndTime "8:05:34 PDT"]
[Termination "KatakuriDono won by checkmate"]

1. d4 {[%clk 0:02:58.5]} 1... d5 {[%clk 0:02:57.1]} 2. Nf3 {[%clk 0:02:58.6]}
2... Nf6 {[%clk 0:02:56.7]} 3. e3 {[%clk 0:02:58.2]} 3... g6 {[%clk 0:02:54.8]}
4. Nbd2 {[%clk 0:02:56]} 4... Bg7 {[%clk 0:02:54.4]} 5. b4 {[%clk 0:02:55.7]}
5... O-O {[%clk 0:02:53.8]} 6. c4 {[%clk 0:02:55.8]} 6... c6 {[%clk 0:02:53.1]}
7. a4 {[%clk 0:02:54.4]} 7... a5 {[%clk 0:02:52]} 8. b5 {[%clk 0:02:54.2]} 8...
c5 {[%clk 0:02:52.6]} 9. dxc5 {[%clk 0:02:53.5]} 9... Ne4 {[%clk 0:02:49.6]} 10.
Nxe4 {[%clk 0:02:53.2]} 10... dxe4 {[%clk 0:02:46.9]} 11. Nd4 {[%clk 0:02:52.4]}
11... Nd7 {[%clk 0:02:45.9]} 12. Ba3 {[%clk 0:02:51.5]} 12... Qc7 {[%clk
0:02:34.8]} 13. c6 {[%clk 0:02:45.9]} 13... bxc6 {[%clk 0:02:32.3]} 14. Nxc6
{[%clk 0:02:46.8]} 14... Bc3+ {[%clk 0:02:21.1]} 15. Ke2 {[%clk 0:02:42.9]}
15... Ne5 {[%clk 0:02:18.1]} 16. Nxe7+ {[%clk 0:02:13.3]} 16... Kh8 {[%clk
0:02:12.9]} 17. f3 {[%clk 0:02:08.7]} 17... exf3+ {[%clk 0:02:01.6]} 18. gxf3
{[%clk 0:02:07.5]} 18... Qxc4+ {[%clk 0:01:55.5]} 19. Kf2 {[%clk 0:01:58]} 19...
Qh4+ {[%clk 0:01:55.1]} 20. Kg1 {[%clk 0:01:49.1]} 20... Bb7 {[%clk 0:01:45.4]}
21. Bg2 {[%clk 0:01:32.8]} 21... Qg5 {[%clk 0:01:33.1]} 22. Kf2 {[%clk 0:01:10]}
22... Rfd8 {[%clk 0:01:31.7]} 23. Qxd8+ {[%clk 0:00:33.6]} 23... Rxd8 {[%clk
0:01:31.1]} 24. Rad1 {[%clk 0:00:34.5]} 24... Nd3+ {[%clk 0:01:22.3]} 25. Rxd3
{[%clk 0:00:31.7]} 25... Rxd3 {[%clk 0:01:22.3]} 26. Nc6 {[%clk 0:00:15.5]}
26... Rd2+ {[%clk 0:01:20.2]} 27. Ke1 {[%clk 0:00:14.8]} 27... Qxe3+ {[%clk
0:01:20]} 28. Kf1 {[%clk 0:00:14.9]} 28... Qf2# {[%clk 0:01:20.2]} 0-1